bitfinex-derivatives/quotes_SOLF0:USTF0_20250523
["timestamp","ask_amount","ask_price","bid_price","bid_amount"]
[1747982677509,4.54498628,181.07,181.06,0.04049706]
[1747982677709,4.54498628,181.07,181.06,5.56359706]
[1747982677913,4.54498628,181.07,181.06,0.04049706]
[1747982678410,4.54498628,181.08,181.06,0.04049706]
[1747982679109,10.06758628,181.08,181.06,0.04049706]
[1747982679910,10.06758628,181.08,181.06,5.56339706]
[1747982680109,4.54498628,181.07,181.06,5.56339706]
[1747982681112,4.54498628,181.08,181.06,5.56339706]
[1747982681314,4.54498628,181.08,181.07,5.5228]
[1747982681910,4.54498628,181.08,181.06,5.56339706]
[1747982682617,4.54498628,181.08,181.07,5.5228]
[1747982683217,4.54498628,181.08,181.06,5.56339706]
[1747982684724,4.54498628,181.08,181.06,0.04049706]
[1747982685022,4.54498628,181.08,180.94,5.5904789]
[1747982685321,5.5904789,181.06,180.91,1.8539]
[1747982685522,5.5904789,181.06,180.91,106.8139]
[1747982685913,0.04114064,181.0,180.97,0.03605449]
[1747982686123,129.94,180.99,180.97,0.03605449]
[1747982686820,134.48498628,180.99,180.97,0.03605449]
[1747982687621,140.01018628,180.99,180.97,0.03605449]
[1747982687820,4.54498628,180.98,180.97,0.03605449]
[1747982689120,4.54498628,180.98,180.97,5.56185449]
[1747982696228,129.94,180.99,180.98,5.5255]
[1747982697532,134.48148387,180.99,180.98,5.5255]
[1747982702530,0.04114064,181.0,180.99,5.5252]
[1747982703425,4.064e-05,181.0,180.99,5.5252]
[1747982703637,5.01211681,181.04,181.03,5.524]
[1747982704637,129.96,181.07,181.02,5.5613975]
[1747982704845,129.96,181.07,181.02,0.0371975]
[1747982705545,5.5904789,181.05,180.88,14.03655012]
[1747982705738,5.5904789,181.01,180.92,5.5272]
[1747982706034,129.16,181.0,180.88,8.44607122]
[1747982706232,129.16,181.0,180.95,5.5264]
[1747982706425,5.56300845,180.99,180.96,0.03700761]
[1747982707034,5.5256,180.98,180.96,0.03700761]
[1747982707633,5.5258,180.97,180.96,0.03700761]
[1747982708138,5.5256,180.98,180.96,0.03700761]
[1747982709039,0.03750845,180.99,180.96,0.03700761]
[1747982709536,0.03750845,180.99,180.98,5.5255]
[1747982710038,0.03750845,180.99,180.97,5.5258]
[1747982710230,0.03750845,180.99,180.96,0.03700761]
[1747982710737,0.03750845,180.99,180.97,5.5258]
[1747982711734,0.03750845,180.99,180.98,5.5255]
[1747982712138,134.19211681,181.04,180.98,104.98]
[1747982712640,129.18,181.04,180.98,104.98]
[1747982712835,129.18,181.04,180.96,0.03700761]
[1747982713041,134.704,181.04,180.96,105.01700761]
[1747982713947,129.18,181.04,180.96,0.03700761]
[1747982714741,5.5244,181.02,180.96,0.03700761]
[1747982715543,10.04080282,181.03,180.96,0.03700761]
[1747982715734,4.51670282,181.03,180.96,0.03700761]
[1747982716047,4.51670282,181.03,181.01,5.5245]
[1747982716343,4.51670282,181.03,181.0,0.0421541]
[1747982716546,129.16,181.05,181.02,5.5241]
[1747982716738,134.6836,181.05,181.0,0.0421541]
[1747982716935,129.16,181.05,181.0,0.0421541]
[1747982717436,5.5242,181.03,181.0,0.0421541]
[1747982717741,129.16,181.05,181.0,5.5669541]
[1747982718043,4.51865901,181.02,181.0,5.5669541]
[1747982718239,4.51865901,181.02,181.01,5.5246]
[1747982719338,5.01211681,181.06,181.0,0.0421541]
[1747982720143,5.5236,181.05,181.02,5.5241]
[1747982720346,5.01211681,181.06,181.0,0.0421541]
[1747982720945,5.5237,181.04,181.01,5.5244]
[1747982721245,4.51988062,181.04,181.0,0.0421541]
[1747982721747,4.51988062,181.04,181.03,5.524]
[1747982724145,8.062e-05,181.04,181.03,5.524]
[1747982724350,5.01211681,181.08,181.07,5.5228]
[1747982726248,5.01211681,181.08,181.06,0.0387798]
[1747982727149,5.5228,181.07,181.06,0.0387798]
[1747982729456,139.76259571,181.1,180.95,234.1]
[1747982729648,1.8944,181.06,180.95,234.1]
[1747982729951,5.5244,181.02,180.99,5.5249]
[1747982730153,129.14,181.05,180.95,234.1]
[1747982730446,0.03892555,181.02,180.98,0.03610387]
[1747982731050,0.03892555,181.02,181.0,5.5249]
[1747982731461,0.03892555,181.02,180.98,0.03610387]
[1747982732759,5.5247,181.01,180.98,0.03610387]
[1747982733165,0.03892555,181.02,180.98,0.03610387]
[1747982733462,5.56342555,181.02,180.98,5.56160387]
[1747982733763,0.03892555,181.02,180.98,5.56160387]
[1747982733962,0.03892555,181.02,180.98,0.03610387]
[1747982734470,0.03892555,181.02,181.0,5.5248]
[1747982735063,5.56322555,181.02,180.99,5.5251]
[1747982735259,5.56322555,181.02,180.98,0.03610387]
[1747982735260,0.03892555,181.02,180.98,0.03610387]
[1747982735569,0.03892555,181.02,180.99,5.5904789]
[1747982736364,0.03892555,181.02,181.01,5.5246]
[1747982737763,0.03892555,181.02,180.98,0.03610387]
[1747982737969,128.49892555,181.02,180.98,0.03610387]
[1747982738269,134.02342555,181.02,180.99,5.5249]
[1747982738468,4.49846676,181.01,180.98,0.03610387]
[1747982738868,10.02306676,181.01,180.98,0.03610387]
[1747982739162,4.49846676,181.01,180.98,0.03610387]
[1747982739361,10.02306676,181.01,180.98,5.56150387]
[1747982739567,10.02306676,181.01,180.98,0.03610387]
[1747982739568,4.49846676,181.01,180.98,0.03610387]
[1747982739770,4.49846676,181.0,180.98,0.03610387]
[1747982739963,4.49846676,181.0,180.98,5.56140387]
[1747982740169,4.49846676,181.0,180.98,0.03610387]
[1747982740570,4.49846676,181.0,180.98,5.56160387]
[1747982741169,5.5252,180.99,180.98,0.03610387]
[1747982741764,5.52,180.99,180.86,134.0956]
[1747982742065,10.08894566,181.0,180.86,5.6356]
[1747982742270,5.5904789,180.97,180.87,5.5288]
[1747982742467,132.3648,180.96,180.84,8.44607122]
[1747982742664,5.5904789,180.94,180.85,5.5295]
[1747982742968,0.03789014,180.92,180.88,0.04175757]
[1747982743163,128.46,180.91,180.84,8.44607122]
[1747982743373,134.0504789,180.91,180.84,8.44607122]
[1747982743870,134.0504789,180.91,180.84,13.97567122]
[1747982744069,5.5283,180.89,180.84,13.97567122]
[1747982744264,0.03909834,180.88,180.85,0.04100857]
[1747982744467,5.62957724,180.88,180.78,11.21723063]
[1747982744669,5.5904789,180.85,180.78,11.21723063]
[1747982744970,128.48,180.84,180.78,11.21723063]
[1747982745267,5.5904789,180.82,180.78,2.04983063]
[1747982745472,5.62981916,180.82,180.78,0.04093709]
[1747982745775,5.5904789,180.79,180.69,3.9536]
[1747982745965,128.48,180.78,180.69,2.0257]
[1747982746161,4.49846676,180.87,180.69,2.0257]
[1747982746366,5.5904789,180.81,180.69,2.0257]
[1747982746568,0.03564209,180.77,180.73,0.03541558]
[1747982747271,5.5329,180.74,180.73,0.03541558]
[1747982747467,134.0729,180.74,180.73,0.03541558]
[1747982748273,5.534,180.71,180.66,5.5352]
[1747982748569,128.54,180.74,180.64,3.9093]
[1747982748770,128.54,180.74,180.55,128.54]
[1747982748975,128.54,180.74,180.58,1.9085]
[1747982749474,0.0376953,180.68,180.64,0.0417305]
[1747982749671,128.6,180.67,180.64,0.04092678]
[1747982750474,0.03823314,180.68,180.64,0.04092678]
[1747982750673,128.6,180.74,180.64,0.04092678]
[1747982750974,128.6,180.73,180.7,5.5338]
[1747982751163,128.6,180.74,180.62,9.10040054]
[1747982751368,128.6,180.76,180.66,9.10040054]
[1747982751569,128.6,180.76,180.67,1.8846]
[1747982751777,128.6,180.76,180.75,5.5325]
[1747982752177,0.03874683,180.77,180.74,0.04051943]
[1747982752474,0.03874683,180.77,180.76,5.5322]
[1747982752662,0.03874683,180.77,180.74,0.04051943]
[1747982753573,0.03874683,180.77,180.74,5.57331943]
[1747982753880,0.03874683,180.77,180.74,0.04051943]
[1747982754069,5.5323,180.76,180.74,0.04051943]
[1747982754270,0.03874683,180.77,180.74,0.04051943]
[1747982755485,5.57074683,180.77,180.74,0.04051943]
[1747982755782,0.03874683,180.77,180.74,0.04051943]
[1747982755975,0.03874683,180.77,180.75,5.5323]
[1747982756370,0.03874683,180.77,180.74,0.04051943]
[1747982756575,0.03874683,180.77,180.75,5.5325]
[1747982758080,0.03874683,180.77,180.74,5.57331943]
[1747982758277,477.62,180.79,180.74,0.04051943]
[1747982758481,128.64,180.85,180.74,0.04051943]
[1747982758672,128.64,180.85,180.72,128.64]
[1747982758980,128.64,180.85,180.75,9.10040054]
[1747982759182,128.64,180.85,180.76,105.1]
[1747982759376,0.03718599,180.82,180.79,0.04031587]
[1747982759880,5.56758599,180.82,180.79,0.04031587]
[1747982760370,5.5308,180.81,180.79,0.04031587]
[1747982760570,0.03718599,180.82,180.79,0.04031587]
[1747982762179,0.03718599,180.82,180.81,5.5307]
[1747982762575,128.64,180.85,180.8,1.9499]
[1747982763576,0.03822666,180.84,180.79,0.04031587]
[1747982764670,5.531,180.8,180.79,0.04031587]
[1747982764874,133.551,180.8,180.79,0.04031587]
[1747982766081,128.02,180.8,180.79,0.04031587]
[1747982766582,128.02,180.8,180.79,5.57161587]
[1747982767280,128.02,180.8,180.79,0.04031587]
[1747982768688,128.02,180.8,180.79,5.57161587]
[1747982769886,0.03822666,180.84,180.79,0.04031587]
[1747982770974,0.03822666,180.84,180.79,105.14031587]
[1747982771181,128.02,180.89,180.86,5.5289]
[1747982771376,128.02,180.89,180.8,2.0046]
[1747982771578,128.02,180.89,180.81,1.912]
[1747982772183,0.03509731,180.87,180.86,5.5291]
[1747982772382,0.03766055,180.88,180.85,0.03537027]
[1747982776677,0.0735,180.99,180.85,0.03537027]
[1747982776883,127.98,180.93,180.86,9.10040054]
[1747982777083,127.98,180.97,180.86,9.10040054]
[1747982777791,0.04035368,180.93,180.9,0.03542557]
[1747982783292,5.5273,180.92,180.9,0.03542557]
[1747982783504,0.04035368,180.93,180.9,0.03542557]
[1747982783789,5.5276,180.91,180.9,0.03542557]
[1747982784094,127.94,180.92,180.9,0.03542557]
[1747982784987,133.4673,180.92,180.9,0.03542557]
[1747982785194,127.94,180.92,180.9,0.03542557]
[1747982786098,5.5276,180.91,180.9,0.03542557]
[1747982786495,127.94,180.92,180.9,0.03542557]
[1747982787796,5.5277,180.91,180.9,0.03542557]
[1747982790998,127.94,180.92,180.83,2.0034]
[1747982791183,127.94,180.92,180.87,5.5288]
[1747982791385,127.94,180.92,180.83,2.0034]
[1747982791796,0.03545136,180.89,180.88,5.5284]
[1747982792596,0.03545136,180.89,180.86,0.03722476]
[1747982793201,127.94,180.92,180.86,0.03722476]
[1747982794199,0.03964216,180.91,180.86,0.03722476]
[1747982802609,5.57364477,180.9,180.76,105.04]
[1747982803010,5.57364477,180.9,180.75,127.44]
[1747982803306,5.57364477,180.87,180.75,127.44]
[1747982803502,127.44,180.86,180.75,127.44]
[1747982803710,0.03719668,180.83,180.79,0.03554742]
[1747982809914,5.01211681,180.9,180.79,0.03554742]
[1747982810111,127.46,180.87,180.75,127.44]
[1747982810908,0.036835,180.83,180.79,0.041827]
[1747982811810,127.46,180.89,180.79,0.041827]
[1747982812010,5.01211681,180.92,180.75,127.44]
[1747982812205,127.46,180.91,180.78,9.08851665]
[1747982812508,4.56807379,180.9,180.78,9.08851665]
[1747982812703,4.56807379,180.9,180.82,0.04245582]
[1747982812905,4.56807379,180.9,180.82,232.58245582]
[1747982813204,4.56807379,180.9,180.83,3.7693]
[1747982813917,127.46,180.91,180.83,3.7693]
[1747982815915,5.01211681,180.95,180.83,3.7693]
[1747982816209,132.47211681,180.95,180.87,0.04021741]
[1747982817720,4.57702117,180.94,180.87,0.04021741]
[1747982818518,4.57702117,180.93,180.87,0.04021741]
[1747982819919,127.46,180.95,180.87,0.04021741]
[1747982820122,127.46,180.95,180.93,5.5268]
[1747982820715,127.46,180.95,180.94,5.5267]
[1747982821420,132.03599731,180.95,180.94,5.5267]
[1747982821919,4.57599731,180.95,180.94,5.5267]
[1747982822523,4.57599731,180.95,180.93,5.5269]
[1747982823220,4.57599731,180.95,180.94,5.5267]
[1747982824122,4.57599731,180.95,180.93,5.5269]
[1747982824328,5.526,180.97,180.93,5.5269]
[1747982824618,127.44,180.99,180.92,0.03487868]
[1747982825124,5.527,180.93,180.92,0.03487868]
[1747982825417,126.92,180.93,180.83,1.9038]
[1747982825623,5.5289,180.88,180.79,1.954]
[1747982825817,5.5289,180.88,180.79,3.7884]
[1747982825818,126.92,180.88,180.79,3.7884]
[1747982826519,0.04249637,180.85,180.82,0.0389858]
[1747982826725,9.637e-05,180.85,180.84,5.5298]
[1747982827925,9.637e-05,180.85,180.83,5.53]
[1747982828420,9.637e-05,180.85,180.84,5.5298]
[1747982830829,9.637e-05,180.85,180.82,0.0389858]
[1747982831014,4.57390545,180.85,180.82,0.0389858]
[1747982831420,5.45e-06,180.85,180.84,5.5298]
[1747982831627,126.94,180.91,180.84,5.56772405]
[1747982831929,126.94,180.91,180.85,2.0027]
[1747982832430,126.94,180.91,180.86,0.03640999]
[1747982834024,5.01211681,180.94,180.86,0.03640999]
[1747982834228,126.94,180.93,180.86,0.03640999]
[1747982834425,126.94,180.93,180.86,2.04730999]
[1747982834620,126.94,180.93,180.89,5.528]
[1747982834824,126.94,180.93,180.86,2.04730999]
[1747982835829,132.4671,180.93,180.86,2.04730999]
[1747982836329,132.4671,180.93,180.89,5.5281]
[1747982836529,126.94,180.93,180.86,2.04730999]
[1747982837026,132.4673,180.93,180.89,5.5282]
[1747982837416,126.94,180.93,180.86,0.03640999]
[1747982837622,5.5279,180.91,180.86,0.03640999]
[1747982837825,126.94,180.93,180.86,0.03640999]
[1747982838030,126.94,180.93,180.89,5.5281]
[1747982838333,132.4671,180.93,180.86,0.03640999]
[1747982838626,126.92,180.92,180.9,5.5278]
[1747982839021,126.92,180.92,180.86,0.03640999]
[1747982839624,126.92,180.92,180.88,5.5285]
[1747982839826,126.92,180.92,180.86,0.03640999]
[1747982840626,5.5278,180.91,180.87,5.5288]
[1747982840933,126.92,180.92,180.87,5.5288]
[1747982841534,126.92,180.92,180.86,0.03640999]
[1747982842033,132.4475,180.92,180.86,0.03640999]
[1747982842931,126.92,180.92,180.86,0.03640999]
[1747982843333,132.4475,180.92,180.88,5.5283]
[1747982843736,132.4475,180.92,180.86,0.03640999]
[1747982843936,4.55117675,180.91,180.86,0.03640999]
[1747982844535,131.49117675,180.91,180.86,0.03640999]
[1747982845131,131.49117675,180.91,180.89,5.528]
[1747982845437,131.49117675,180.91,180.86,0.03640999]
[1747982845637,131.49117675,180.91,180.88,5.5285]
[1747982845825,131.49117675,180.91,180.86,0.03640999]
[1747982846338,5.528,180.9,180.86,5.56550999]
[1747982846540,10.07917675,180.9,180.86,5.56550999]
[1747982846737,4.55117675,180.9,180.86,0.03640999]
[1747982847640,10.1189008,180.9,180.79,1.8344]
[1747982848040,5.5297,180.85,180.82,5.5302]
[1747982848236,126.94,180.84,180.79,1.8344]
[1747982848538,126.97529444,180.83,180.82,5.5304]
[1747982849035,0.03529444,180.83,180.82,5.5304]
[1747982849240,5.56772405,180.94,180.8,5.6089514]
[1747982849539,126.94,180.93,180.8,5.56772405]
[1747982849737,126.94,180.93,180.81,1.8379]
[1747982849938,126.94,180.93,180.92,5.5273]
[1747982850140,126.94,180.93,180.83,5.56772405]
[1747982850439,126.94,180.93,180.86,0.03485035]
[1747982851745,126.94,180.93,180.89,5.5281]
[1747982851929,126.94,180.93,180.86,0.03485035]
[1747982852132,126.94,180.92,180.86,0.03485035]
[1747982852330,126.94,180.92,180.9,5.5278]
[1747982852742,126.94,180.92,180.89,5.5281]
[1747982853138,126.94,180.92,180.86,0.03485035]
[1747982853337,5.5279,180.91,180.86,0.03485035]
[1747982853545,126.94,180.92,180.86,0.03485035]
[1747982853843,126.94,180.92,180.86,5.6025744]
[1747982854041,126.94,180.92,180.87,1.9987]
[1747982854546,126.94,180.92,180.86,0.03485035]
[1747982854953,5.5281,180.9,180.86,5.56405035]
[1747982855341,132.4675,180.92,180.88,5.5285]
[1747982855642,132.4675,180.92,180.86,0.03485035]
[1747982855836,126.94,180.92,180.86,0.03485035]
[1747982856445,126.94,180.92,180.88,5.5284]
[1747982856446,132.4675,180.92,180.88,5.5284]
[1747982856847,126.94,180.92,180.88,5.5284]
[1747982857148,132.4675,180.92,180.88,5.5284]
[1747982857352,126.94,180.92,180.88,5.5284]
[1747982857643,126.94,180.92,180.86,0.03485035]
[1747982857945,126.94,180.92,180.88,5.5285]
[1747982858150,132.4675,180.92,180.88,5.5285]
[1747982858352,126.94,180.92,180.86,0.03485035]
[1747982858541,126.94,180.92,180.89,5.5282]
[1747982859249,126.94,180.92,180.86,0.03485035]
[1747982860553,5.56772405,180.91,180.86,0.00545035]
[1747982860849,5.56772405,180.91,180.77,4.0218]
[1747982861147,5.5291,180.87,180.77,4.0218]
[1747982861349,126.44,180.86,180.77,4.0218]
[1747982861557,131.9692,180.86,180.77,4.0218]
[1747982861748,0.04248518,180.83,180.8,0.03576546]
[1747982863159,0.04248518,180.83,180.82,5.5304]
[1747982863960,126.44,180.86,180.85,5.5295]
[1747982864155,5.01211681,180.9,180.81,7.47152405]
[1747982864861,5.01211681,180.9,180.84,0.03799454]
[1747982865063,4.52702753,180.9,180.84,0.03799454]
[1747982865657,4.52702753,180.9,180.88,5.5284]
[1747982866359,4.52702753,180.9,180.84,0.03799454]
[1747982866766,4.52702753,180.89,180.84,0.03799454]
[1747982867060,4.52702753,180.89,180.86,5.529]
[1747982867267,4.52702753,180.89,180.84,0.03799454]
[1747982868267,10.05522753,180.9,180.86,5.529]
[1747982868568,4.52702753,180.9,180.84,0.03799454]
[1747982868969,5.5284,180.89,180.84,0.03799454]
[1747982869266,4.52702753,180.9,180.84,0.03799454]
[1747982869466,10.05522753,180.9,180.86,5.5292]
[1747982869874,4.52702753,180.89,180.86,5.5292]
[1747982870070,4.52702753,180.89,180.84,0.03799454]
[1747982870770,4.52702753,180.89,180.88,5.5286]
[1747982871472,4.52702753,180.92,180.89,5.528]
[1747982871773,4.52702753,180.92,180.89,5.5661536]
[1747982872872,10.05442753,180.92,180.89,5.5661536]
[1747982873063,10.05442753,180.92,180.89,0.0381536]
[1747982873263,4.52702753,180.92,180.89,0.0381536]
[1747982874169,4.52702753,180.92,180.89,5.5662536]
[1747982875067,10.05442753,180.92,180.89,0.0381536]
[1747982875373,4.52702753,180.92,180.89,0.0381536]
[1747982876071,5.528,180.9,180.89,0.0381536]
[1747982876266,4.52702753,180.92,180.89,0.0381536]
[1747982876572,4.52702753,180.91,180.89,0.0381536]
[1747982877571,5.528,180.9,180.89,0.0381536]
[1747982879081,10.05502753,180.9,180.89,0.0381536]
[1747982880176,10.04702753,180.9,180.69,22.26954305]
[1747982880380,5.56772405,180.85,180.76,5.5322]
[1747982880583,126.44,180.84,180.7,3.8698]
[1747982880777,5.56772405,180.82,180.7,3.8698]
[1747982880977,126.44,180.81,180.69,11.20084305]
[1747982881274,0.03958204,180.79,180.76,0.03612921]
[1747982881478,5.60730609,180.79,180.69,11.20084305]
[1747982881682,0.03958204,180.79,180.69,11.20084305]
[1747982882082,4.52702753,180.78,180.71,5.56772405]
[1747982882283,4.52702753,180.78,180.72,3.8698]
[1747982882576,0.03556019,180.77,180.76,5.5322]
[1747982882884,5.01211681,180.8,180.74,5.56772405]
[1747982883087,5.01211681,180.8,180.79,5.5313]
[1747982883980,0.04143145,180.81,180.8,5.531]
[1747982884879,0.04143145,180.81,180.78,0.03693073]
[1747982886785,0.04143145,180.81,180.8,5.531]
[1747982889083,0.04143145,180.81,180.79,5.5312]
[1747982889283,0.04143145,180.81,180.78,0.03693073]
[1747982889584,0.04143145,180.81,180.8,5.531]
[1747982892098,0.04143145,180.81,180.78,0.03693073]
[1747982892782,0.04143145,180.81,180.8,5.531]
[1747982897795,0.04143145,180.81,180.78,0.03693073]
[1747982898295,0.04143145,180.81,180.8,5.531]
[1747982898491,0.04143145,180.81,180.78,0.03693073]
[1747982898697,126.02,180.8,180.78,0.03693073]
[1747982899594,126.02,180.8,180.79,5.5313]
[1747982900699,126.02,180.8,180.78,5.56843073]
[1747982900898,126.02,180.8,180.78,0.03693073]
[1747982901503,126.02,180.8,180.79,5.5313]
[1747982903994,126.02,180.8,180.78,5.56843073]
[1747982904202,126.02,180.8,180.78,0.03693073]
[1747982906403,126.02,180.8,180.78,5.56833073]
[1747982906696,126.02,180.8,180.78,0.03693073]
[1747982907804,126.02,180.8,180.78,5.56833073]
[1747982909406,126.02,180.8,180.78,0.03693073]
[1747982910106,126.02,180.8,180.79,5.5313]
[1747982910806,131.56,180.8,180.62,11.0726]
[1747982911008,131.56,180.8,180.64,14.27706189]
[1747982911009,5.57814127,180.78,180.64,14.27706189]
[1747982911705,5.57814127,180.75,180.64,14.27706189]
[1747982911908,0.03914606,180.71,180.68,0.04249798]
[1747982913010,0.03914606,180.71,180.7,5.5341]
[1747982916413,126.04,180.74,180.73,5.5332]
[1747982919421,126.04,180.74,180.72,0.03615761]
[1747982921717,126.04,180.74,180.72,5.56955761]
[1747982922016,126.04,180.74,180.72,0.03615761]
[1747982922220,126.04,180.74,180.72,5.56955761]
[1747982922420,126.04,180.74,180.72,0.03615761]
[1747982923012,131.5731,180.74,180.72,0.03615761]
[1747982923616,126.04,180.74,180.72,0.03615761]
[1747982927826,131.573,180.74,180.72,0.03615761]
[1747982928016,126.04,180.74,180.72,0.03615761]
[1747982928729,5.5331,180.73,180.72,0.03615761]
[1747982930831,10.0150898,180.73,180.72,0.03615761]
[1747982932134,4.4819898,180.73,180.72,0.03615761]
[1747982933236,10.0150898,180.73,180.72,0.03615761]
[1747982934619,5.5331,180.73,180.72,0.03615761]
[1747982935724,126.04,180.74,180.72,0.03615761]
[1747982935925,126.04,180.74,180.73,5.5331]
[1747982936524,126.04,180.74,180.72,0.03615761]
[1747982937436,5.57814127,180.73,180.54,11.0774]
[1747982937629,1.9241,180.73,180.58,5.8198]
[1747982937826,130.25466897,180.72,180.59,5.57814127]
[1747982938034,125.78,180.71,180.59,5.57814127]
[1747982938436,0.03503685,180.67,180.63,0.0397027]
[1747982938919,5.5354,180.66,180.63,0.0397027]
[1747982939127,125.78,180.66,180.63,0.0397027]
[1747982940134,125.78,180.66,180.63,5.5757027]
[1747982940639,125.78,180.66,180.63,0.0397027]
[1747982941939,131.3155,180.66,180.63,0.0397027]
[1747982942237,125.78,180.66,180.63,0.0397027]
[1747982942437,5.5356,180.65,180.63,0.0397027]
[1747982942933,125.78,180.66,180.65,5.5356]
[1747982943129,0.03503685,180.67,180.63,0.0397027]
[1747982943333,125.8,180.71,180.63,0.0397027]
[1747982943533,125.8,180.71,180.62,5.57814127]
[1747982944536,125.8,180.71,180.68,5.5344]
[1747982944735,125.84033993,180.71,180.65,0.04192156]
[1747982944935,125.84033993,180.71,180.69,5.5343]
[1747982945129,125.84033993,180.71,180.65,0.04192156]
[1747982945535,125.84033993,180.71,180.67,5.5348]
[1747982945738,125.84033993,180.71,180.65,0.04192156]
[1747982946035,5.5343,180.7,180.66,5.5352]
[1747982946231,125.84033993,180.71,180.65,0.04192156]
[1747982947333,583.36,180.7,180.54,8.39256189]
[1747982947529,9.0989438,180.67,180.54,8.39256189]
[1747982947731,125.48,180.66,180.54,8.39256189]
[1747982948437,0.03558949,180.62,180.58,0.03494885]
[1747982948623,5.5374,180.59,180.58,0.03494885]
[1747982950235,125.48,180.61,180.54,8.39256189]
[1747982950426,4.0246,180.6,180.43,5.8263]
[1747982950629,4.0246,180.6,180.43,131.3263]
[1747982950837,125.5,180.59,180.37,11.20084305]
[1747982951036,9.12625409,180.53,180.37,11.20084305]
[1747982951233,0.03860692,180.47,180.43,0.04151897]
[1747982953335,0.03860692,180.47,180.44,125.5]
[1747982953539,129.95342901,180.52,180.44,125.5]
[1747982953837,5.5386,180.56,180.44,127.4739]
[1747982953838,131.0786,180.56,180.44,127.4739]
[1747982954434,130.61431518,180.57,180.52,5.5393]
[1747982954630,0.04211804,180.56,180.53,0.04227346]
[1747982955740,5.5387,180.55,180.53,0.04227346]
[1747982956244,5.5389,180.54,180.53,0.04227346]
[1747982957231,5.5401,180.51,180.44,127.4739]
[1747982957431,125.54,180.57,180.44,1.9739]
[1747982957937,5.5398,180.52,180.47,5.5409]
[1747982958141,125.54,180.57,180.47,5.5409]
[1747982958331,0.03951856,180.54,180.5,0.04083342]
[1747982958838,0.03951856,180.54,180.29,478.54]
[1747982959038,5.5406,180.49,180.37,3.6966]
[1747982959435,5.5405,180.5,180.37,3.6966]
[1747982959636,125.58,180.51,180.37,3.6966]
[1747982959637,125.58,180.51,180.45,5.5417]
[1747982959827,125.58,180.51,180.46,0.03760264]
[1747982960029,0.04040987,180.5,180.46,0.03760264]
[1747982960636,5.5406,180.49,180.46,0.03760264]
[1747982960838,0.04040987,180.5,180.46,0.03760264]
[1747982962141,5.5407,180.49,180.46,0.03760264]
[1747982962342,0.04040987,180.5,180.46,0.03760264]
[1747982962641,5.5409,180.48,180.46,0.03760264]
[1747982962837,0.04040987,180.5,180.32,125.6]
[1747982963032,0.04040987,180.5,180.34,1.9189]
[1747982963033,1.9267,180.5,180.34,1.9189]
[1747982963342,5.5424,180.43,180.34,1.9189]
[1747982963545,13.05459807,180.5,180.34,1.9189]
[1747982963746,9.12489807,180.46,180.34,1.9189]
[1747982963941,9.12489807,180.46,180.4,0.03510469]
[1747982963942,0.03993291,180.44,180.4,0.03510469]
[1747982964543,5.543,180.41,180.4,0.03510469]
[1747982966148,0.03993291,180.44,180.4,0.03510469]
[1747982967343,5.58223291,180.44,180.4,0.03510469]
[1747982967650,0.03993291,180.44,180.4,0.03510469]
[1747982968049,5.5426,180.43,180.4,0.03510469]
[1747982968544,0.03993291,180.44,180.4,0.03510469]
[1747982969247,0.03993291,180.44,180.4,5.57810469]
[1747982969444,0.03993291,180.44,180.4,0.03510469]
[1747982969846,0.03993291,180.44,180.3,9.12489807]
[1747982969847,125.64,180.43,180.19,495.4689]
[1747982970053,125.64,180.43,180.31,1.8425]
[1747982970353,5.5435,180.4,180.35,5.5446]
[1747982970648,125.64,180.43,180.32,125.64]
[1747982970850,0.03586855,180.39,180.36,0.03595429]
[1747982971551,5.57966855,180.39,180.36,0.03595429]
[1747982972355,0.03586855,180.39,180.36,0.03595429]
[1747982972855,0.03586855,180.39,180.24,125.66]
[1747982973056,125.66,180.38,180.25,5.8435]
[1747982973255,5.5452,180.34,180.28,5.5467]
[1747982973456,125.66,180.38,180.28,5.5467]
[1747982973844,5.5453,180.34,180.31,0.03587511]
[1747982974050,0.04158598,180.35,180.31,0.03587511]
[1747982975157,0.04158598,180.35,180.32,5.5457]